Workbook

Sheet Лист1
A1: Остаток | B1: 125 | H1: Остаток | I1: 125
M2: Что хотелось бы сделать
B3: ПРИХОД | I3: ПРИХОД
M4: 1. | N4: Ячейки ИТОГО по строкам и столбцам
B5: сумма | C5: сумма | D5: итого | I5: сумма | J5: сумма | K5: итого | N5: меняли цвет ,если формула в одной ячейке отличается от формулы другойячейки, либо в ней отсутствует формула
A6: 2013-01-01 | B6: 23 | C6: 14 | D6: =SUM(B6:C6) -> 37 | H6: 2013-01-01 | I6: 23 | J6: 327 | K6: =SUM(I6:J6) -> 350
A7: 2013-01-02 | B7: 12 | D7: =SUM(B7:C7) -> 12 | H7: 2013-01-02 | I7: 12 | K7: =SUM(I7:J7) -> 12 | M7: 2. | N7: Ячейка ЛОЖЬ - правильность применения функции и правила усл. Форматирования
A8: 2013-01-03 | B8: 17 | C8: 17 | D8: 34 | H8: 2013-01-03 | I8: 17 | J8: 17 | K8: 34
A9: 2013-01-04 | B9: 103 | C9: 1024 | D9: 1127 | H9: 2013-01-04 | I9: 103 | J9: 1024 | K9: 1127 | M9: 3. | N9: Результат остатка на конец при ошибках в K13 и K25 тоже менял цвет
A10: 2013-01-05 | B10: 223 | D10: 223 | H10: 2013-01-05 | I10: 223 | K10: 223
A11: 2013-01-06 | B11: 745 | D11: 745 | H11: 2013-01-06 | I11: 745 | K11: 745
A12: 2013-01-07 | B12: 142 | C12: 254 | D12: 396 | H12: 2013-01-07 | I12: 142 | J12: 254 | K12: 396
A13: Итого | B13: =SUM(B6:B12) -> 1265 | C13: =SUM(C6:C12) -> 1309 | D13: =IF(SUM(D6:D12)=SUM(B13:C13),SUM(D6:D12)) -> 2574 | H13: Итого | I13: =SUM(I6:I12) -> 1265 | J13: =SUM(J6:J11) -> 1368 | K13: =IF(SUM(K6:K12)=SUM(I13:J13),SUM(K6:K12)) -> FALSE
B15: Расход | I15: Расход
B17: сумма | C17: сумма | I17: сумма | J17: сумма
A18: 2013-01-01 | B18: 17 | C18: 3 | D18: =SUM(B18:C18) -> 20 | H18: 2013-01-01 | I18: 17 | J18: 3 | K18: =SUM(I18:J18) -> 20
A19: 2013-01-02 | B19: 105 | D19: =SUM(B19:C19) -> 105 | H19: 2013-01-02 | I19: 105 | K19: =SUM(I16:J19) -> 125
A20: 2013-01-03 | C20: 25 | D20: 25 | H20: 2013-01-03 | J20: 25 | K20: =SUM(I20:J20) -> 25
A21: 2013-01-04 | B21: 97 | D21: 97 | H21: 2013-01-04 | I21: 97 | K21: 97
A22: 2013-01-05 | D22: 0 | H22: 2013-01-05 | K22: 0
A23: 2013-01-06 | C23: 8 | D23: 8 | H23: 2013-01-06 | J23: 8 | K23: 8
A24: 2013-01-07 | C24: 400 | D24: 400 | H24: 2013-01-07 | J24: 400 | K24: 400
A25: Итого | B25: =SUM(B18:B24) -> 219 | C25: =SUM(C18:C24) -> 436 | D25: =IF(SUM(D18:D24)=SUM(B25:C25),SUM(D18:D24)) -> 655 | H25: Итого | I25: =SUM(I18:I24) -> 219 | J25: =SUM(J18:J24) -> 436 | K25: =IF(SUM(K18:K24)=SUM(I25:J25),SUM(K18:K24)) -> FALSE
A27: Остаток | B27: =B1+D13-D25 -> 2044 | H27: Остаток | I27: =I1+K13-K25 -> 125
H28: на конец
A29: Пример правильной таблицы | H29: Пример с ошибками

Sheet Лист2

Sheet Лист3
